bitfinex-derivatives/quotes_BTCF0:USTF0_20241003
["timestamp","ask_amount","ask_price","bid_price","bid_amount"]
[1727960466563,0.18993119,60523.0,60515.0,0.082635]
[1727960466757,0.18993119,60523.0,60522.0,0.082626]
[1727960466758,0.15445136,60523.0,60522.0,0.082626]
[1727960469158,0.07782536,60523.0,60511.0,0.0038]
[1727960469367,0.08263,60520.0,60519.0,0.08263]
[1727960469568,0.29,60521.0,60508.0,0.2638]
[1727960469768,0.29,60515.0,60514.0,0.082637]
[1727960470172,0.082638,60514.0,60512.0,0.08264]
[1727960470564,0.29,60515.0,60512.0,0.08264]
[1727960470764,0.082645,60509.0,60502.0,0.0038]
[1727960470960,0.29,60506.0,60505.0,0.082649]
[1727960471469,0.0462,60508.0,60507.0,0.082647]
[1727960471967,0.3608,60513.0,60512.0,0.08264]
[1727960472272,0.39067214,60513.0,60512.0,0.08264]
[1727960472462,0.39067214,60513.0,60507.0,0.002]
[1727960472674,0.001,60508.0,60507.0,0.084647]
[1727960473059,0.001,60508.0,60507.0,0.082647]
[1727960473769,0.082647,60507.0,60503.0,0.082652]
[1727960473976,0.19,60504.0,60503.0,0.082652]
[1727960475377,0.191,60504.0,60503.0,0.084652]
[1727960475576,0.002,60504.0,60503.0,0.084652]
[1727960477477,0.002,60504.0,60503.0,0.17850146]
[1727960477879,0.002,60504.0,60503.0,0.129052]
[1727960478082,0.3608,60513.0,60512.0,0.08264]
[1727960478467,0.086424,60524.0,60512.0,0.08264]
[1727960478468,0.0038,60524.0,60512.0,0.13208603]
[1727960478665,0.0441,60527.0,60520.0,0.082625]
[1727960478880,0.3608,60529.0,60521.0,0.082628]
[1727960479101,0.02989921,60529.0,60528.0,0.082618]
[1727960480176,0.0024786,60537.0,60529.0,0.082617]
[1727960480378,0.11552741,60537.0,60536.0,0.082607]
[1727960480575,0.0850846,60537.0,60536.0,0.082607]
[1727960481075,0.0024786,60537.0,60536.0,0.082607]
[1727960481683,0.0164786,60537.0,60536.0,0.082607]
[1727960482073,0.0304786,60537.0,60536.0,0.082607]
[1727960482275,0.028,60537.0,60536.0,0.082607]
[1727960482781,0.04245951,60537.0,60536.0,0.083607]
[1727960483377,0.002,60537.0,60536.0,0.083607]
[1727960484281,0.16077685,60542.0,60541.0,0.082601]
[1727960484488,0.04045851,60542.0,60541.0,0.082601]
[1727960484668,0.13103531,60542.0,60541.0,0.082601]
[1727960484872,0.17149382,60542.0,60541.0,0.082601]
[1727960485476,0.04545851,60542.0,60541.0,0.082601]
[1727960485775,0.18349382,60542.0,60541.0,0.082601]
[1727960486183,0.05245851,60542.0,60530.0,0.2938]
[1727960486382,0.05245851,60542.0,60529.0,0.3608]
[1727960486383,0.29,60536.0,60529.0,0.3608]
[1727960486597,0.29,60536.0,60530.0,0.082615]
[1727960486779,0.04046181,60535.0,60530.0,0.082615]
[1727960486979,0.29,60536.0,60530.0,0.082615]
[1727960487177,0.04046232,60535.0,60532.0,0.082612]
[1727960487382,0.04046232,60534.0,60532.0,0.082612]
[1727960487680,0.29,60536.0,60532.0,0.082612]
[1727960487681,0.04046263,60533.0,60532.0,0.082612]
[1727960488483,0.04046263,60533.0,60532.0,0.085612]
[1727960488687,0.04046263,60533.0,60532.0,0.582212]
[1727960488877,0.001,60534.0,60533.0,0.082611]
[1727960489479,0.02939141,60540.0,60534.0,0.08261]
[1727960489781,0.92884119,60545.0,60544.0,0.082596]
[1727960489782,0.78225,60545.0,60544.0,0.082596]
[1727960490086,0.78141,60545.0,60544.0,0.082596]
[1727960491892,0.79841,60545.0,60544.0,0.082596]
[1727960492481,0.79841,60545.0,60544.0,0.443396]
[1727960492689,0.79841,60545.0,60544.0,0.938916]
[1727960492988,0.79841,60545.0,60544.0,0.443396]
[1727960493583,0.79841,60545.0,60544.0,0.703396]
[1727960494598,0.79841,60545.0,60544.0,0.443396]
[1727960496790,1.08841,60545.0,60544.0,0.443396]
[1727960497391,0.79841,60545.0,60544.0,0.443396]
[1727960497586,1.171005,60545.0,60544.0,0.3608]
[1727960497790,1.171005,60545.0,60544.0,0.443396]
[1727960497987,1.171005,60545.0,60540.0,0.082601]
[1727960497988,1.577905,60545.0,60540.0,0.082601]
[1727960498191,0.29,60541.0,60540.0,0.082601]
[1727960498685,0.082597,60544.0,60541.0,0.0826]
[1727960499087,0.082597,60544.0,60542.0,0.082599]
[1727960499299,1.49531,60545.0,60534.0,0.6208]
[1727960499595,1.51560519,60545.0,60543.0,0.082597]
[1727960500099,1.51560519,60545.0,60535.0,0.082609]
[1727960500396,1.51160519,60545.0,60544.0,0.082596]
[1727960501091,1.51460519,60545.0,60544.0,0.082596]
[1727960501607,1.52460519,60545.0,60544.0,0.082596]
[1727960501984,1.52560519,60545.0,60534.0,0.26]
[1727960502394,1.52560519,60545.0,60543.0,0.082597]
[1727960502583,1.52560519,60545.0,60530.0,0.086415]
[1727960502791,0.29,60537.0,60536.0,0.082607]
[1727960504086,0.29,60542.0,60534.0,0.001]
[1727960504287,1.21960519,60545.0,60544.0,0.082596]
[1727960504487,1.21860519,60545.0,60544.0,0.082596]
[1727960504685,1.25906603,60545.0,60544.0,0.082596]
[1727960505287,1.39010134,60545.0,60544.0,0.082596]
[1727960505488,1.25906603,60545.0,60544.0,0.082596]
[1727960505683,1.26906603,60545.0,60544.0,0.082596]
[1727960506388,1.35166103,60545.0,60544.0,0.082596]
[1727960506596,0.082597,60544.0,60536.0,0.001]
[1727960506795,1.46721056,60545.0,60534.0,0.08261]
[1727960506796,0.42101545,60542.0,60541.0,0.082601]
[1727960507098,0.46147232,60542.0,60541.0,0.082601]
[1727960507394,0.33045926,60542.0,60541.0,0.082601]
[1727960508193,0.23860325,60542.0,60541.0,0.082601]
[1727960508400,0.09517206,60542.0,60541.0,0.082601]
[1727960508997,0.10217206,60542.0,60541.0,0.082601]
[1727960509302,0.05145926,60542.0,60541.0,0.082601]
[1727960510590,0.011,60542.0,60541.0,0.082601]
[1727960512598,0.05145754,60542.0,60541.0,0.082601]
[1727960512805,0.011,60542.0,60541.0,0.082601]
[1727960513592,0.082608,60536.0,60535.0,0.082608]
[1727960513901,0.372608,60536.0,60535.0,0.082608]
[1727960514301,0.733408,60536.0,60535.0,0.082608]
[1727960514598,0.6508,60536.0,60535.0,0.082608]
[1727960515198,0.734407,60536.0,60535.0,0.082608]
[1727960515395,0.6518,60536.0,60535.0,0.082608]
[1727960515896,0.734407,60536.0,60535.0,0.083608]
[1727960516709,0.739407,60536.0,60535.0,0.082608]
[1727960517203,0.739407,60536.0,60532.0,0.082612]
[1727960517204,0.08261,60534.0,60532.0,0.082612]
[1727960517506,0.08261,60534.0,60521.0,0.0478]
[1727960517507,0.0983,60533.0,60520.0,0.0038]
[1727960517805,0.29,60528.0,60527.0,0.08262]
[1727960519107,0.293,60528.0,60527.0,0.08262]
[1727960519608,0.193,60528.0,60527.0,0.08262]
[1727960520007,0.194,60528.0,60527.0,0.08262]
[1727960520395,0.004,60528.0,60527.0,0.08262]
[1727960520600,0.001,60528.0,60527.0,0.08262]
[1727960520795,0.004,60528.0,60527.0,0.08262]
[1727960520999,0.0038,60539.0,60527.0,1.45644]
[1727960521305,0.0038,60543.0,60541.0,0.082601]
[1727960521507,0.78141,60545.0,60541.0,0.082601]
[1727960521706,0.78141,60545.0,60541.0,0.342601]
[1727960521707,0.97141,60545.0,60541.0,0.342601]
[1727960521905,0.0494,60544.0,60541.0,0.342601]
[1727960522096,0.0494,60544.0,60541.0,0.082601]
[1727960522097,0.07934106,60544.0,60541.0,0.082601]
[1727960522501,0.07934106,60544.0,60535.0,0.26]
[1727960522702,0.19,60536.0,60535.0,0.082609]
[1727960523498,0.5508,60536.0,60535.0,0.082609]
[1727960523904,0.59126492,60536.0,60535.0,0.082609]
[1727960524209,0.67219349,60536.0,60535.0,0.082609]
[1727960524403,0.67219349,60536.0,60529.0,0.082617]
[1727960524404,1.7707538,60536.0,60529.0,0.082617]
[1727960524604,0.19,60530.0,60529.0,0.082617]
[1727960524801,0.23046929,60530.0,60529.0,0.082617]
[1727960525102,0.36178893,60530.0,60529.0,0.082617]
[1727960525412,1.50707938,60530.0,60529.0,0.082617]
[1727960525621,1.50707938,60530.0,60529.0,0.083617]
[1727960525810,1.37580929,60530.0,60529.0,0.083617]
[1727960526612,1.53630518,60530.0,60529.0,0.083617]
[1727960526807,1.53630518,60530.0,60529.0,0.085617]
[1727960526808,0.06968706,60530.0,60529.0,0.085617]
[1727960527005,0.02921777,60530.0,60529.0,0.085617]
[1727960527210,0.0404667,60530.0,60529.0,0.085617]
[1727960527419,0.0404667,60530.0,60529.0,0.083617]
[1727960527711,7e-07,60530.0,60529.0,0.083617]
[1727960527914,0.13127521,60532.0,60531.0,0.082614]
[1727960528301,0.13127521,60532.0,60531.0,1.178214]
[1727960528815,0.13127521,60532.0,60531.0,1.38634017]
[1727960529205,0.13127521,60532.0,60531.0,1.30411853]
[1727960529605,0.13127521,60532.0,60531.0,1.39034017]
[1727960529909,0.13127521,60532.0,60531.0,1.39234017]
[1727960529910,0.13227521,60532.0,60531.0,1.39234017]
[1727960530415,0.04922521,60532.0,60531.0,1.43602245]
[1727960531412,0.04922521,60532.0,60531.0,0.34042245]
[1727960531599,0.04922521,60532.0,60531.0,0.29694142]
[1727960531805,0.04922521,60532.0,60531.0,0.36288427]
[1727960532002,0.04922521,60532.0,60531.0,0.36288443]
[1727960532510,0.04922521,60532.0,60531.0,0.29694142]
[1727960532712,0.04822521,60532.0,60531.0,0.79054142]
[1727960532908,0.04922521,60532.0,60531.0,0.30094142]
[1727960533302,0.04922521,60532.0,60531.0,1.39654142]
[1727960533303,2.1e-07,60532.0,60531.0,1.39654142]
[1727960533503,0.13127786,60534.0,60531.0,1.53914593]
[1727960533703,0.13127786,60534.0,60533.0,0.272611]
[1727960534202,0.0404645,60536.0,60535.0,0.082609]
[1727960534416,0.78141,60545.0,60544.0,0.082596]
[1727960534714,0.78141,60545.0,60544.0,0.938916]
[1727960534915,0.78141,60545.0,60544.0,1.198916]
[1727960535714,0.78141,60545.0,60544.0,1.798916]
[1727960536117,0.79141,60545.0,60544.0,1.799916]
[1727960536716,0.79841,60545.0,60544.0,1.200916]
[1727960537408,0.79841,60545.0,60544.0,0.705396]
[1727960537718,0.79841,60545.0,60544.0,1.200916]
[1727960537917,0.713385,60545.0,60544.0,1.800916]
[1727960539111,0.626891,60545.0,60544.0,1.800916]
[1727960539303,0.536039,60545.0,60544.0,1.800916]
[1727960539704,0.536039,60545.0,60544.0,1.305396]
[1727960539906,0.536039,60545.0,60544.0,0.445396]
[1727960540313,0.618634,60545.0,60544.0,0.3628]
[1727960540916,0.082607,60536.0,60535.0,0.3608]
[1727960541120,0.272607,60536.0,60535.0,0.3608]
[1727960542017,0.19,60536.0,60535.0,0.443409]
[1727960542319,0.19,60540.0,60539.0,0.082603]
[1727960542623,0.19,60540.0,60529.0,0.15212122]
[1727960542921,0.19,60540.0,60535.0,0.002]
[1727960542922,0.082607,60536.0,60535.0,0.002]
[1727960543226,0.082613,60532.0,60529.0,0.14832122]
[1727960543422,0.272613,60532.0,60529.0,0.14832122]
[1727960543722,0.082616,60530.0,60529.0,0.14832122]
[1727960544713,0.082616,60530.0,60529.0,0.07182122]
[1727960545519,0.450416,60530.0,60529.0,0.07282122]
[1727960545715,0.460416,60530.0,60529.0,0.07282122]
[1727960546642,0.48990362,60530.0,60529.0,0.07282122]
[1727960547320,0.48990362,60530.0,60529.0,0.001]
[1727960551323,0.48990362,60530.0,60529.0,0.083617]
[1727960552015,1.58554362,60530.0,60520.0,0.0038]
[1727960552214,0.6508,60521.0,60515.0,0.00247859]
[1727960552415,0.372635,60516.0,60515.0,0.00247859]
[1727960552722,0.733435,60516.0,60515.0,0.00247859]
[1727960554530,0.734435,60516.0,60515.0,0.00747859]
[1727960554717,0.735435,60516.0,60515.0,0.01247859]
[1727960555119,0.76587217,60516.0,60515.0,0.01247859]
[1727960555515,0.47587217,60516.0,60515.0,0.01247859]
[1727960558835,0.11507217,60516.0,60515.0,0.01247859]
[1727960559021,0.83667217,60516.0,60515.0,0.01247859]
[1727960561730,0.83667217,60516.0,60515.0,0.01]
[1727960562221,0.082646,60508.0,60501.0,0.05267937]
[1727960562423,0.29,60511.0,60501.0,0.05267937]
[1727960562617,0.082643,60510.0,60507.0,0.082646]
[1727960562817,0.082645,60509.0,60507.0,0.082646]
[1727960563132,0.130636,60515.0,60514.0,0.082637]
[1727960563421,0.130636,60515.0,60511.0,0.08264]
[1727960563422,0.082639,60513.0,60511.0,0.08264]
[1727960563621,0.082639,60513.0,60504.0,0.08265]
[1727960563622,0.130636,60515.0,60513.0,0.082638]
[1727960564021,0.048,60515.0,60513.0,0.082638]
[1727960564216,0.082637,60514.0,60513.0,0.082638]
[1727960565321,0.082637,60514.0,60505.0,0.19]
[1727960565322,0.132637,60515.0,60514.0,0.082637]
[1727960565529,0.084637,60515.0,60514.0,0.082637]
[1727960565837,0.002,60515.0,60514.0,0.082637]
[1727960566025,0.75295717,60516.0,60515.0,0.082636]
[1727960566215,0.75203717,60516.0,60515.0,0.082636]
[1727960566830,0.03043717,60516.0,60515.0,0.082636]
[1727960567134,0.3608,60522.0,60514.0,0.128737]
[1727960567430,0.001,60516.0,60515.0,0.082636]
[1727960567631,0.39049553,60522.0,60521.0,0.082628]
[1727960567927,0.02969553,60522.0,60521.0,0.082628]
[1727960568133,0.16771386,60529.0,60527.0,0.082619]
[1727960568426,0.08261,60534.0,60529.0,0.082617]
[1727960568832,0.082606,60537.0,60536.0,0.082607]
[1727960570123,0.014,60537.0,60529.0,0.2384]
[1727960570425,0.08261,60534.0,60533.0,0.082611]
[1727960570626,0.110606,60537.0,60534.0,0.082609]
[1727960571018,0.096606,60537.0,60534.0,0.082609]
[1727960571219,0.022,60537.0,60530.0,0.06589368]
[1727960571424,0.104606,60537.0,60533.0,0.082611]
[1727960571831,0.104606,60537.0,60534.0,0.08261]
[1727960572023,0.022,60537.0,60534.0,0.08261]
[1727960572224,0.018,60537.0,60536.0,0.082607]
[1727960572734,0.095606,60537.0,60536.0,0.082607]
[1727960572918,0.109606,60537.0,60536.0,0.082607]
[1727960573122,0.027,60537.0,60536.0,0.082607]
[1727960573325,0.013,60537.0,60536.0,0.082607]
[1727960573618,0.028,60537.0,60536.0,0.082607]
[1727960575228,0.082608,60536.0,60533.0,0.08261]
[1727960575422,0.19,60534.0,60533.0,0.08261]
[1727960576741,0.082617,60530.0,60528.0,0.0473]
[1727960577043,0.272617,60530.0,60529.0,0.082617]
[1727960577333,0.19,60530.0,60529.0,0.082617]
[1727960578934,0.206,60530.0,60529.0,0.082617]
[1727960579525,0.208,60530.0,60529.0,0.082617]
[1727960583141,0.290616,60530.0,60529.0,0.082617]
[1727960583435,1.33267635,60530.0,60516.0,0.0463]
[1727960583632,0.19,60521.0,60520.0,0.082629]
[1727960583834,0.082622,60526.0,60524.0,0.082624]
[1727960584030,0.04703635,60530.0,60520.0,0.19]
[1727960584239,0.04703635,60530.0,60529.0,0.082617]
[1727960584739,0.04703635,60530.0,60529.0,0.182417]
[1727960584939,0.018,60530.0,60529.0,0.232017]
[1727960585132,0.00247876,60543.0,60539.0,0.082603]
[1727960585342,0.39108365,60540.0,60539.0,0.082603]
[1727960585533,0.00247876,60543.0,60542.0,0.082599]
[1727960585839,0.00247876,60543.0,60542.0,0.272599]
[1727960586147,0.519879,60545.0,60544.0,0.082596]
[1727960586328,0.519039,60545.0,60544.0,1.178116]
[1727960587240,0.442939,60545.0,60544.0,1.178116]
[1727960588441,0.449939,60545.0,60544.0,0.083596]
[1727960588741,0.539534,60545.0,60544.0,0.084596]
[1727960588929,0.729534,60545.0,60544.0,0.002]
[1727960589543,1.585854,60545.0,60544.0,0.002]
[1727960589838,1.585854,60545.0,60534.0,0.08261]
[1727960589839,0.082609,60535.0,60534.0,0.08261]
[1727960590544,0.19,60536.0,60526.0,0.00247811]
[1727960590741,0.082612,60533.0,60526.0,0.00247811]
[1727960590946,0.19,60536.0,60526.0,0.00247811]
[1727960591145,0.272604,60539.0,60535.0,0.082609]
[1727960591344,0.19,60539.0,60529.0,0.19]
[1727960591661,0.19,60539.0,60534.0,0.002]
[1727960591662,0.082606,60537.0,60534.0,0.002]
[1727960591839,0.0491,60541.0,60540.0,0.082602]
[1727960591840,0.03044904,60541.0,60540.0,0.082602]
[1727960592044,0.0062782,60548.0,60538.0,0.19]
[1727960592045,0.0024782,60548.0,60538.0,0.19]
[1727960592240,0.803739,60545.0,60544.0,0.082596]
[1727960592439,0.83294412,60545.0,60544.0,0.082596]
[1727960592743,0.47214412,60545.0,60544.0,0.082596]
[1727960593138,0.47414412,60545.0,60544.0,0.082596]
[1727960594539,0.48314412,60545.0,60544.0,0.083596]
[1727960594741,0.48814412,60545.0,60544.0,0.084596]
[1727960594939,0.53885062,60545.0,60544.0,0.084596]
[1727960595249,0.5096455,60545.0,60544.0,0.084596]
[1727960596044,0.5922405,60545.0,60544.0,0.084596]
[1727960596249,1.04664825,60545.0,60544.0,0.002]
[1727960596439,1.12243172,60545.0,60544.0,0.002]
[1727960596745,0.94149326,60545.0,60544.0,0.002]
[1727960597142,0.9414992,60545.0,60544.0,0.002]
[1727960599044,1.12242404,60545.0,60532.0,0.0038]
[1727960599237,0.16446583,60537.0,60530.0,0.082616]
[1727960599438,0.082604,60539.0,60535.0,0.082608]
[1727960599439,0.21517827,60536.0,60535.0,0.082608]
[1727960599639,0.16446583,60536.0,60535.0,0.082608]
[1727960599839,0.31262884,60539.0,60537.0,0.082606]
[1727960600053,0.05071729,60538.0,60532.0,0.082612]
[1727960600242,0.05071729,60538.0,60529.0,0.3632781]
[1727960600243,0.082614,60532.0,60529.0,0.0024781]
[1727960600547,0.31422038,60531.0,60529.0,0.0850951]
[1727960600859,0.31422238,60530.0,60529.0,0.0024781]
[1727960601041,0.31421072,60530.0,60529.0,0.0024781]
[1727960601240,0.082619,60528.0,60527.0,0.082619]
[1727960601449,0.082619,60528.0,60517.0,0.0962]
[1727960601450,0.06025276,60532.0,60529.0,0.008]
[1727960601750,0.06025276,60532.0,60531.0,0.082614]
[1727960601954,0.23250785,60532.0,60531.0,0.082614]
[1727960602245,0.23250785,60532.0,60531.0,0.133014]
[1727960602246,0.05072619,60532.0,60531.0,0.133014]
[1727960602437,0.16426002,60532.0,60531.0,0.180614]
[1727960602643,0.05072619,60532.0,60531.0,0.180614]
[1727960602844,0.18078166,60535.0,60531.0,0.180614]
[1727960603142,0.02961065,60536.0,60531.0,0.180614]
[1727960603143,0.02961065,60536.0,60535.0,0.082609]
[1727960603349,0.52504038,60544.0,60538.0,0.082605]
[1727960603539,0.36164,60544.0,60543.0,0.082598]
[1727960603845,0.38989278,60544.0,60543.0,0.082598]
[1727960604153,0.02909278,60544.0,60543.0,0.082598]
[1727960604347,0.526374,60545.0,60539.0,0.26]
[1727960604544,0.525534,60545.0,60544.0,0.082596]
[1727960604847,0.442939,60545.0,60544.0,0.082596]
[1727960605347,0.442939,60545.0,60544.0,1.228216]
[1727960605750,0.442939,60545.0,60544.0,0.132696]
[1727960606049,0.451939,60545.0,60544.0,0.133696]
[1727960607442,0.451939,60545.0,60544.0,1.229216]
[1727960608144,0.453939,60545.0,60544.0,1.229216]
[1727960608343,0.34102399,60545.0,60544.0,1.229216]
[1727960608543,0.01585699,60545.0,60544.0,1.229216]
[1727960608749,9.9e-07,60545.0,60544.0,1.590016]
[1727960608947,0.00247734,60565.0,60555.0,0.082581]
[1727960609135,0.03014178,60562.0,60561.0,0.082573]
[1727960609342,0.00247734,60565.0,60564.0,0.082569]
[1727960610353,0.03171195,60565.0,60564.0,0.082569]
[1727960610548,0.00247734,60565.0,60564.0,0.082569]
[1727960610946,0.01147734,60565.0,60564.0,0.083569]
[1727960611544,0.00847734,60565.0,60564.0,0.083569]
[1727960611949,0.01547734,60565.0,60564.0,0.084569]
[1727960612649,0.01347734,60565.0,60564.0,0.444369]
[1727960615756,0.01347734,60565.0,60564.0,1.044369]
[1727960615957,0.01347734,60565.0,60564.0,1.539689]
[1727960616153,0.01347734,60565.0,60564.0,1.56978989]
[1727960616660,0.01347734,60565.0,60564.0,1.82978989]
[1727960617155,0.02964581,60575.0,60574.0,0.082556]
[1727960617356,0.082548,60580.0,60579.0,0.082549]
[1727960617555,0.082558,60573.0,60572.0,0.082556]
[1727960618151,0.096557,60575.0,60574.0,0.083556]
[1727960618860,0.096557,60575.0,60574.0,0.001]
[1727960619059,0.095557,60573.0,60572.0,0.083558]
[1727960619749,0.082557,60573.0,60572.0,0.082558]
[1727960620960,0.014,60575.0,60574.0,0.082556]
[1727960621158,0.014,60575.0,60574.0,0.372556]
[1727960621565,0.014,60575.0,60574.0,0.082556]
[1727960621765,0.082554,60575.0,60574.0,0.082556]
[1727960621962,0.02985402,60580.0,60572.0,0.002]
[1727960622162,0.29,60576.0,60572.0,0.002]
[1727960622469,0.082557,60573.0,60572.0,0.083558]
[1727960622668,0.082557,60573.0,60572.0,0.082558]
[1727960623568,0.082557,60573.0,60572.0,0.083558]
[1727960624465,0.0514,60575.0,60574.0,0.082556]
[1727960624661,0.0514,60575.0,60572.0,0.002]
[1727960624867,0.082569,60565.0,60562.0,0.0038]
[1727960625065,0.082569,60565.0,60559.0,0.3608]
[1727960625066,0.082572,60562.0,60561.0,0.082573]
[1727960625268,0.0465,60564.0,60563.0,0.082571]
[1727960626265,0.14728999,60572.0,60571.0,0.08256]
[1727960626466,0.23841838,60572.0,60571.0,0.08256]
[1727960626655,0.09112839,60572.0,60571.0,0.08256]
[1727960626856,0.23841838,60572.0,60571.0,0.08256]
[1727960627162,0.12073498,60572.0,60571.0,0.08256]
[1727960627368,0.26802497,60572.0,60571.0,0.08256]
[1727960627860,0.12073498,60572.0,60571.0,0.08256]
[1727960628363,0.12573326,60572.0,60571.0,0.08356]
[1727960628566,0.13673326,60572.0,60571.0,0.08456]
[1727960628763,0.13673326,60572.0,60571.0,0.002]
[1727960628764,0.29240497,60572.0,60571.0,0.002]
[1727960628970,0.29240497,60572.0,60565.0,0.082567]
[1727960628971,0.082566,60566.0,60565.0,0.082567]
[1727960629195,0.12300506,60566.0,60565.0,0.082567]
[1727960629473,0.09113035,60566.0,60565.0,0.082567]
[1727960629658,0.22991996,60566.0,60559.0,0.3608]
[1727960629864,0.04043906,60565.0,60564.0,0.082569]
[1727960630066,0.14735296,60566.0,60565.0,0.082568]
[1727960630265,0.15335296,60566.0,60565.0,0.083568]
[1727960630470,0.09713384,60566.0,60565.0,0.083568]
[1727960630671,0.10213384,60566.0,60565.0,0.084568]
[1727960631374,0.10213044,60566.0,60565.0,0.084568]
[1727960632171,0.005,60566.0,60565.0,0.083568]
[1727960632467,0.087566,60566.0,60565.0,0.083568]
[1727960633169,0.093566,60566.0,60565.0,0.084568]
[1727960638262,0.011,60566.0,60565.0,0.084568]
[1727960640575,0.093566,60566.0,60565.0,0.084568]
[1727960641473,0.454366,60566.0,60565.0,0.002]
[1727960641677,1.46712,60566.0,60559.0,0.082576]
[1727960641874,0.082583,60554.0,60553.0,0.082583]
[1727960642179,0.082587,60551.0,60550.0,0.00247737]
[1727960642866,1.81704,60551.0,60537.0,0.0038]
[1727960643066,1.81704,60551.0,60532.0,0.0499]
[1727960643067,0.082593,60547.0,60532.0,0.0461]
[1727960643270,0.29,60542.0,60532.0,0.0461]
[1727960643580,0.082603,60539.0,60535.0,0.082608]
[1727960644966,0.082603,60539.0,60535.0,0.089608]
[1727960645169,0.048,60546.0,60542.0,0.082598]
[1727960645480,0.130595,60546.0,60541.0,0.082599]
[1727960646682,0.130595,60546.0,60543.0,0.082597]
[1727960647167,0.082595,60545.0,60543.0,0.082597]
[1727960648172,0.082595,60545.0,60543.0,0.083597]
[1727960648580,0.086595,60545.0,60543.0,0.083597]
[1727960648780,0.090595,60545.0,60543.0,0.082597]
[1727960649274,0.086595,60545.0,60543.0,0.082597]
[1727960649472,0.092595,60545.0,60543.0,0.083597]
[1727960650173,0.082596,60544.0,60543.0,0.083597]
[1727960650981,0.082596,60544.0,60543.0,0.082597]
[1727960651476,0.009,60545.0,60544.0,0.082596]
[1727960651777,0.130594,60546.0,60544.0,0.082596]
[1727960652281,0.130594,60546.0,60545.0,0.082595]
[1727960652576,0.082596,60544.0,60543.0,0.001]
[1727960652774,0.089595,60545.0,60544.0,0.001]
[1727960653767,0.095595,60545.0,60544.0,0.002]
[1727960654368,0.082596,60544.0,60532.0,0.2638]
[1727960654574,0.006,60545.0,60536.0,0.082606]
[1727960654575,0.082603,60539.0,60536.0,0.082606]
[1727960654871,0.082605,60538.0,60536.0,0.082606]
[1727960655181,0.082608,60536.0,60533.0,0.08261]
[1727960655387,0.082608,60536.0,60534.0,0.08261]
[1727960655573,0.082605,60538.0,60532.0,0.272]
[1727960655886,0.082605,60538.0,60536.0,0.082607]
[1727960656280,0.0475,60540.0,60532.0,0.012]
[1727960656281,0.082606,60537.0,60532.0,0.012]
[1727960656585,0.733411,60533.0,60532.0,0.012]
[1727960657081,0.733411,60533.0,60532.0,0.006]
[1727960657280,0.733411,60533.0,60526.0,0.26]
[1727960657281,0.08262,60527.0,60526.0,0.26]
[1727960657472,0.08262,60527.0,60526.0,0.342621]
[1727960657673,0.08262,60527.0,60526.0,0.082621]
[1727960657878,0.130213,60532.0,60531.0,0.082614]
[1727960658181,0.082616,60530.0,60528.0,0.082617]
[1727960658482,0.08262,60527.0,60526.0,0.013]
[1727960658784,0.082632,60518.0,60517.0,0.00244]
[1727960658992,0.082632,60518.0,60511.0,0.00247896]
[1727960658993,0.08264,60512.0,60511.0,0.00247896]
[1727960659286,0.37264,60512.0,60511.0,0.00247896]
[1727960659478,0.37264,60512.0,60500.0,0.3608]
[1727960659786,0.082642,60511.0,60506.0,0.082648]
[1727960659977,0.29,60512.0,60506.0,0.082648]
[1727960659978,0.082645,60509.0,60506.0,0.082648]
[1727960660483,0.082651,60504.0,60499.0,0.082657]
[1727960660669,0.082652,60503.0,60499.0,0.082657]
[1727960660981,0.082652,60503.0,60501.0,0.082654]
[1727960661869,0.082652,60503.0,60499.0,0.084657]
[1727960661870,0.001,60503.0,60499.0,0.084657]
[1727960662076,0.082657,60500.0,60499.0,0.002]
[1727960662272,0.082657,60500.0,60483.0,0.05]
[1727960662273,0.3608,60500.0,60483.0,0.05]
[1727960662478,0.082672,60489.0,60484.0,0.082678]
[1727960662681,0.29,60493.0,60482.0,0.0474]
[1727960662682,0.372667,60493.0,60482.0,0.0474]
[1727960662882,0.372661,60497.0,60490.0,0.08267]
[1727960663082,0.082664,60495.0,60490.0,0.08267]
[1727960663479,0.3608,60492.0,60490.0,0.08267]
[1727960664472,0.3608,60492.0,60486.0,0.082676]
[1727960664675,0.001,60489.0,60486.0,0.082676]
[1727960664982,0.082676,60486.0,60483.0,0.082679]
[1727960665172,0.082676,60486.0,60479.0,0.00247997]
[1727960665173,0.29,60484.0,60479.0,0.00247997]
[1727960665373,0.372679,60484.0,60481.0,0.082682]
[1727960666176,0.29,60484.0,60479.0,0.00247997]
[1727960666378,0.082684,60480.0,60473.0,0.26]
[1727960666574,0.04130616,60480.0,60475.0,0.082691]
[1727960666979,0.372686,60479.0,60475.0,0.082691]
[1727960667186,0.29,60479.0,60477.0,0.082687]
[1727960667885,0.001,60484.0,60483.0,0.08268]
[1727960668589,0.001,60479.0,60478.0,0.372687]
[1727960668892,0.3608,60492.0,60490.0,0.082669]
[1727960669092,0.3608,60492.0,60491.0,0.082669]
[1727960669281,0.39035393,60492.0,60491.0,0.082669]
[1727960670289,0.39035393,60492.0,60484.0,0.372678]
[1727960670290,0.3608,60497.0,60489.0,0.33907154]
[1727960670492,0.3608,60497.0,60492.0,0.082667]
[1727960671082,0.03044472,60494.0,60492.0,0.082667]
[1727960671393,0.3608,60497.0,60492.0,0.13173854]
[1727960671691,0.3608,60504.0,60502.0,0.082653]
[1727960671887,0.39132515,60504.0,60502.0,0.082653]
[1727960672086,0.39132515,60504.0,60503.0,0.082652]
[1727960673183,0.68532515,60504.0,60501.0,0.06641055]
[1727960673383,0.082654,60502.0,60498.0,0.082658]